bitfinex-derivatives/quotes_BTCF0:USTF0_20260207
["timestamp","ask_amount","ask_price","bid_price","bid_amount"]
[1770446766007,0.45553299,70013.0,69971.0,0.071498]
[1770446766315,0.01429,70016.0,69995.0,0.0002]
[1770446766516,0.4286062,70020.0,69988.0,0.014296]
[1770446766906,0.4286062,70020.0,69992.0,0.014295]
[1770446767106,0.014288,70026.0,69992.0,0.014295]
[1770446767311,0.4286062,70033.0,69992.0,0.014295]
[1770446767312,0.4286062,70033.0,69992.0,0.53322391]
[1770446767516,0.4428932,70033.0,69999.0,0.014294]
[1770446767814,0.4428932,70033.0,69999.0,0.54751791]
[1770446768212,0.4286062,70033.0,69999.0,0.54751791]
[1770446768414,0.39654814,70045.0,70010.0,0.014291]
[1770446768614,0.014285,70044.0,70010.0,0.014291]
[1770446769112,0.39654814,70045.0,70005.0,0.54275991]
[1770446769514,0.39654814,70057.0,70005.0,0.54275991]
[1770446769709,0.39654814,70057.0,70001.0,0.071468]
[1770446769710,0.014282,70056.0,70018.0,0.54275991]
[1770446769913,0.39654814,70057.0,70018.0,0.54275991]
[1770446770111,0.39973538,70069.0,70035.0,0.014286]
[1770446770312,0.39973538,70069.0,70014.0,0.071455]
[1770446770313,0.39993538,70082.0,70043.0,0.54275991]
[1770446770512,0.39973538,70082.0,70043.0,0.55704491]
[1770446770923,0.0002,70119.0,69985.0,0.54275991]
[1770446770924,0.38545038,70037.0,69985.0,0.54275991]
[1770446771115,0.38545038,70020.0,69984.0,0.0002]
[1770446771321,0.38545038,70012.0,69984.0,0.0002]
[1770446771517,0.38545038,70026.0,69978.0,0.54275991]
[1770446771825,0.38545038,70026.0,69986.0,0.54275991]
[1770446772012,0.38545038,70026.0,69996.0,0.014294]
[1770446772217,0.3688423,70053.0,69996.0,0.55705391]
[1770446772419,0.3688423,70047.0,69996.0,0.55705391]
[1770446772625,0.014286,70035.0,69996.0,0.55705391]
[1770446772924,0.014284,70046.0,69996.0,0.54275991]
[1770446773108,0.3688423,70047.0,70003.0,0.014293]
[1770446773313,0.014286,70036.0,70004.0,0.54275991]
[1770446774515,0.3688423,70041.0,70004.0,0.54275991]
[1770446776427,0.014285,70042.0,69979.0,0.55705791]
[1770446776428,0.014289,70023.0,69979.0,0.55705791]
[1770446776723,0.014289,70023.0,69983.0,0.014297]
[1770446777029,0.34561196,70023.0,69983.0,0.014297]
[1770446777422,0.34561196,70023.0,69987.0,0.014296]
[1770446777921,0.33132296,70023.0,69987.0,0.014296]
[1770446778125,0.33132296,70023.0,69987.0,0.55705591]
[1770446778321,0.2363,70022.0,69987.0,0.55705591]
[1770446779623,0.014289,70021.0,69987.0,0.55705591]
[1770446780632,0.014289,70021.0,69991.0,0.014295]
[1770446781324,0.014289,70021.0,69987.0,0.54275991]
[1770446781528,0.01429,70017.0,69987.0,0.54275991]
[1770446781734,0.250589,70022.0,69988.0,0.014296]
[1770446782423,0.2363,70022.0,69994.0,0.014295]
[1770446784732,0.2363,70022.0,69990.0,0.014295]
[1770446784931,0.071419,70050.0,69969.0,0.92488]
[1770446784932,0.014285,70044.0,70011.0,0.014291]
[1770446785134,0.2363,70041.0,70007.0,0.014292]
[1770446785431,0.34280793,70027.0,69993.0,0.54275991]
[1770446785632,0.35709593,70025.0,69993.0,0.54275991]
[1770446785832,0.35709593,70025.0,69993.0,0.55705491]
[1770446786531,0.014289,70022.0,69993.0,0.55705491]
[1770446787128,0.014289,70022.0,69980.0,0.1429808]
[1770446787129,0.01429,70019.0,69987.0,0.014296]
[1770446787336,0.01429,70016.0,69987.0,0.014296]
[1770446787532,0.34111787,70019.0,69980.0,0.54275991]
[1770446788034,0.01429,70018.0,69987.0,0.014296]
[1770446788426,0.2363,70017.0,69987.0,0.014296]
[1770446788937,0.2363,70017.0,69973.0,0.014299]
[1770446788938,0.2363,70017.0,70000.0,0.014293]
[1770446789527,0.2363,70016.0,70003.0,0.014293]
[1770446789733,0.23262272,70016.0,70003.0,0.014293]
[1770446790130,0.34061654,70043.0,69999.0,0.014294]
[1770446790330,0.34061726,70028.0,70000.0,0.014293]
[1770446790839,0.35490626,70021.0,69985.0,0.54275991]
[1770446791033,0.34061726,70017.0,69991.0,0.014295]
[1770446791642,0.35490726,70017.0,69987.0,0.014296]
[1770446791837,0.35490826,70014.0,69985.0,0.54275991]
[1770446792132,0.35490826,70014.0,69983.0,0.014297]
[1770446792525,0.34061726,70014.0,69987.0,0.014296]
[1770446792730,0.34061726,70014.0,69983.0,0.014297]
[1770446792731,0.014291,70013.0,69983.0,0.014297]
[1770446792930,0.34717449,70013.0,69983.0,0.014297]
[1770446793330,0.33288349,70013.0,69976.0,0.54275991]
[1770446793537,0.33288349,70013.0,69978.0,0.54275991]
[1770446793732,0.33288349,70013.0,69985.0,0.014296]
[1770446793937,0.33288349,70013.0,69988.0,0.014296]
[1770446794737,0.01429,70017.0,69981.0,0.54275991]
[1770446794940,0.014289,70021.0,69986.0,0.54275991]
[1770446795136,0.01429,70018.0,69992.0,0.014295]
[1770446795431,0.33880035,70024.0,69992.0,0.54275991]
[1770446795636,0.014288,70029.0,70000.0,0.014293]
[1770446796238,0.014287,70033.0,69994.0,0.75958842]
[1770446796453,0.34157106,70058.0,70004.0,0.54813567]
[1770446796639,0.35585406,70054.0,70024.0,0.014288]
[1770446796937,0.35585706,70037.0,70009.0,0.17097304]
[1770446797132,0.35585706,70037.0,70010.0,0.014291]
[1770446797329,0.35585706,70037.0,70009.0,0.17097304]
[1770446797330,0.014285,70041.0,70013.0,0.014291]
[1770446797529,0.34157106,70049.0,70019.0,0.66209873]
[1770446797734,0.35585206,70060.0,70027.0,0.11396306]
[1770446797933,0.35585206,70060.0,70028.0,0.11396306]
[1770446798334,0.34157106,70060.0,70032.0,0.014287]
[1770446798835,0.01428,70068.0,70038.0,0.014286]
[1770446799038,0.3411639,70071.0,70045.0,0.014284]
[1770446799236,0.3411639,70071.0,70041.0,0.12824806]
[1770446799540,0.42322762,70110.0,70031.0,0.54813567]
[1770446799541,0.014277,70080.0,70050.0,0.54813567]
[1770446799736,0.3411639,70091.0,70050.0,0.66209873]
[1770446799737,0.014278,70076.0,70050.0,0.66209873]
[1770446799932,0.014278,70076.0,70050.0,0.54813567]
[1770446800134,0.014278,70076.0,70050.0,0.66209873]
[1770446800334,0.014278,70076.0,70050.0,0.54813567]
[1770446800836,0.014277,70080.0,70050.0,0.54813567]
[1770446801040,0.3411639,70091.0,70050.0,0.54813567]
[1770446801233,0.35684424,70089.0,70059.0,0.014281]
[1770446801435,0.34256924,70085.0,70050.0,0.54813567]
[1770446801633,0.014278,70075.0,70050.0,0.54813567]
[1770446802035,0.014278,70075.0,70048.0,0.11396306]
[1770446802238,0.014277,70079.0,70046.0,0.08924606]
[1770446802444,0.34749412,70097.0,70056.0,0.54813567]
[1770446802740,0.34749412,70097.0,70065.0,0.01428]
[1770446802942,0.36176812,70097.0,70066.0,0.01428]
[1770446803130,0.36176812,70097.0,70062.0,0.014281]
[1770446803131,0.014275,70091.0,70062.0,0.014281]
[1770446803336,0.014274,70095.0,70065.0,0.01428]
[1770446803531,0.014274,70095.0,70056.0,0.54813567]
[1770446803532,0.34749412,70097.0,70069.0,0.014279]
[1770446804134,0.014274,70096.0,70064.0,0.01428]
[1770446804338,0.34749412,70097.0,70067.0,0.01428]
[1770446804547,0.34749412,70097.0,70070.0,0.014279]
[1770446805136,0.36176812,70097.0,70067.0,0.54813567]
[1770446805339,0.34749412,70097.0,70067.0,0.54813567]
[1770446805541,0.34749412,70097.0,70061.0,0.014281]
[1770446805941,0.35809168,70091.0,70057.0,0.014282]
[1770446806435,0.34382937,70088.0,70052.0,0.014283]
[1770446806640,0.34382937,70080.0,70045.0,0.54813567]
[1770446806947,0.35810737,70077.0,70046.0,0.014284]
[1770446807646,0.014279,70072.0,70045.0,0.54813567]
[1770446807845,0.35810837,70072.0,70039.0,0.014285]
[1770446808043,0.01428,70068.0,70035.0,0.014286]
[1770446808241,0.36131982,70068.0,70035.0,0.014286]
[1770446808543,0.01428,70065.0,70035.0,0.014286]
[1770446808751,0.36131982,70065.0,70035.0,0.014286]
[1770446809044,0.36132082,70062.0,70034.0,0.54813567]
[1770446809244,0.014277,70083.0,70026.0,0.014288]
[1770446809245,0.34703982,70057.0,70026.0,0.014288]
[1770446809544,0.34703982,70057.0,70020.0,0.14273764]
[1770446809545,0.014284,70049.0,70020.0,0.14273764]
[1770446809843,0.34703982,70048.0,70016.0,0.01429]
[1770446810645,0.34703982,70048.0,70014.0,0.54813567]
[1770446810846,0.36738436,70039.0,70011.0,0.014291]
[1770446811042,0.35309836,70039.0,70011.0,0.014291]
[1770446811642,0.35309836,70053.0,70021.0,0.014289]
[1770446811846,0.35309836,70039.0,70012.0,0.014291]
[1770446812043,0.36738436,70039.0,70008.0,0.014292]
[1770446812551,0.35309836,70039.0,70002.0,0.54813567]
[1770446812741,0.35309836,70039.0,70010.0,0.014291]
[1770446814045,0.014286,70038.0,70010.0,0.014291]
[1770446814241,0.014286,70035.0,70006.0,0.014292]
[1770446814747,0.01409423,70035.0,70006.0,0.014292]
[1770446815546,0.36738436,70039.0,70006.0,0.014292]
[1770446815742,0.36738436,70039.0,70009.0,0.014292]
[1770446817449,0.36738436,70039.0,70012.0,0.014291]
[1770446818651,0.35309836,70039.0,70002.0,0.54813567]
[1770446818847,0.35309836,70039.0,70013.0,0.54813567]
[1770446819049,0.014286,70037.0,70007.0,0.014292]
[1770446819250,0.37182841,70037.0,70007.0,0.014292]
[1770446819951,0.37182841,70037.0,70010.0,0.014291]
[1770446820250,0.35754241,70037.0,70010.0,0.014291]
[1770446821251,0.35754241,70037.0,70013.0,0.014291]
[1770446821651,0.071401,70068.0,70003.0,0.54813567]
[1770446821652,0.35709224,70054.0,70023.0,0.54813567]
[1770446821842,0.014278,70076.0,70021.0,0.014289]
[1770446821843,0.35709224,70050.0,70021.0,0.014289]
[1770446822045,0.37137624,70046.0,70020.0,0.14296273]
[1770446822246,0.37137624,70046.0,70017.0,0.01429]
[1770446822442,0.0002,70080.0,70013.0,0.54813567]
[1770446822443,0.35850529,70055.0,70021.0,0.54813567]
[1770446822648,0.35850529,70055.0,70015.0,0.71910871]
[1770446822952,0.35850529,70043.0,70018.0,0.01429]
[1770446823150,0.35850529,70043.0,70016.0,0.01429]
[1770446823350,0.35850529,70043.0,70019.0,0.01429]
[1770446823553,0.35850529,70041.0,70015.0,0.01429]
[1770446823851,0.35850529,70041.0,70018.0,0.01429]
[1770446825149,0.35850529,70041.0,70009.0,0.54813567]
[1770446826350,0.35850529,70041.0,70016.0,0.01429]
[1770446829556,0.40769571,70080.0,70044.0,0.54798438]
[1770446829759,0.40789571,70075.0,70050.0,0.14293044]
[1770446829947,0.40789571,70075.0,70056.0,0.014282]
[1770446830147,0.40789571,70075.0,70048.0,0.014284]
[1770446830651,0.42217371,70075.0,70044.0,0.014284]
[1770446830857,0.40769571,70075.0,70048.0,0.014284]
[1770446831056,0.40769571,70075.0,70044.0,0.014284]
[1770446831353,0.40119711,70065.0,70036.0,0.014286]
[1770446831552,0.40119711,70065.0,70035.0,0.014286]
[1770446832353,0.38210359,70063.0,70035.0,0.014286]
[1770446832756,0.38210359,70063.0,70025.0,0.54798438]
[1770446832757,0.38210359,70054.0,70016.0,0.18790134]
[1770446832953,0.38210359,70054.0,70015.0,0.54798438]
[1770446834365,0.38210359,70054.0,70024.0,0.014288]
[1770446835661,0.38210359,70054.0,70035.0,0.014286]
[1770446836968,0.40489912,70046.0,70019.0,0.014289]
[1770446837160,0.40489912,70046.0,70022.0,0.014289]
[1770446839162,0.40374652,70041.0,70013.0,0.014291]
[1770446839560,0.40374652,70037.0,70006.0,0.28348445]
[1770446839760,0.40374652,70031.0,70006.0,0.014292]
[1770446840464,0.40374652,70031.0,69995.0,0.52308561]
[1770446841469,0.40374652,70031.0,70002.0,0.014293]
[1770446842668,0.40374652,70031.0,70003.0,0.014293]
[1770446843360,0.42553846,70029.0,70003.0,0.014293]
[1770446844564,0.42553846,70029.0,69995.0,0.52308561]
[1770446844565,0.42553846,70029.0,69999.0,0.014294]
[1770446845159,0.42716967,70027.0,69999.0,0.014294]
[1770446845360,0.42716967,70025.0,69999.0,0.014294]
[1770446845664,0.014283,70050.0,69995.0,0.52308561]
[1770446845665,0.42716967,70043.0,70022.0,0.014289]
[1770446845865,0.42716967,70053.0,70019.0,0.54798438]
[1770446846064,0.42721739,70049.0,70021.0,0.014289]
[1770446846964,0.42721739,70075.0,70031.0,0.014287]
[1770446847164,0.44149939,70057.0,70019.0,0.54798438]
[1770446847770,0.014278,70074.0,70014.0,0.014291]
[1770446847771,0.014284,70045.0,70014.0,0.014291]
[1770446847972,0.42721739,70044.0,70014.0,0.014291]
[1770446848376,0.41957308,70042.0,70010.0,0.56227538]
[1770446848772,0.43385908,70037.0,70010.0,0.54798438]
[1770446849476,0.41957308,70033.0,70004.0,0.014293]
[1770446849677,0.41957308,70031.0,70004.0,0.014293]
[1770446850375,0.41571901,70029.0,70000.0,0.56227738]
[1770446850677,0.41571901,70027.0,69996.0,0.014294]
[1770446851669,0.014295,69994.0,69958.0,0.54878447]
[1770446851972,0.014293,70005.0,69951.0,0.014303]
[1770446852171,0.00167295,69982.0,69954.0,0.014303]
[1770446852575,0.00167295,69980.0,69950.0,0.14293044]
[1770446852973,0.00167295,69978.0,69948.0,0.58333333]
[1770446853175,0.00167295,69973.0,69941.0,0.014306]
[1770446853370,0.00167295,69971.0,69941.0,0.014306]
[1770446853578,0.00167295,69970.0,69941.0,0.014306]
[1770446853777,0.03166495,69980.0,69946.0,0.57754434]
[1770446853975,0.014298,69977.0,69950.0,0.014304]
[1770446854280,0.01399463,69967.0,69932.0,0.57866845]
[1770446854472,0.01399463,69967.0,69941.0,0.014305]
[1770446854668,0.00015183,69966.0,69941.0,0.57866845]
[1770446854874,0.01399463,69978.0,69948.0,0.59297245]
[1770446855273,0.01399463,69978.0,69928.0,0.014308]
[1770446855274,0.014306,69940.0,69906.0,0.014313]
[1770446855474,0.12770662,69980.0,69914.0,0.014311]
[1770446855475,0.014305,69947.0,69914.0,0.014311]
[1770446855679,0.014305,69943.0,69909.0,0.59764533]
[1770446855875,0.014305,69944.0,69909.0,0.59764533]
[1770446856080,0.00749688,69939.0,69909.0,0.58333333]
[1770446856276,0.00749688,69939.0,69912.0,0.014311]
[1770446856780,0.00749688,69939.0,69916.0,0.014311]
[1770446856972,0.13081262,69939.0,69912.0,0.58083437]
[1770446857172,0.014306,69939.0,69912.0,0.58083437]
[1770446857368,0.02180288,69939.0,69912.0,0.58083437]
[1770446857581,0.00749688,69939.0,69912.0,0.58083437]
[1770446857777,0.13086467,69953.0,69930.0,0.014308]
[1770446857981,0.00749688,69959.0,69935.0,0.014307]
[1770446858180,0.00720428,69917.0,69884.0,0.5809319]
[1770446858477,0.00720428,69917.0,69896.0,0.014315]
[1770446858681,0.00720428,69931.0,69900.0,0.014314]
[1770446859080,0.00720428,69931.0,69904.0,0.014313]
[1770446859385,0.13446368,69931.0,69904.0,0.014313]
[1770446859576,0.13446368,69931.0,69900.0,0.5809319]
[1770446859771,0.1272594,69931.0,69912.0,0.014311]
[1770446859982,0.13600054,69945.0,69916.0,0.014311]
[1770446860185,0.13600054,69945.0,69911.0,0.014312]
[1770446860578,0.13600054,69945.0,69915.0,0.014311]
[1770446860778,0.12879626,69945.0,69919.0,0.01431]
[1770446860979,0.13087768,69959.0,69900.0,0.14293044]
[1770446860980,0.13087768,69959.0,69930.0,0.014308]
[1770446861178,0.13087768,69959.0,69925.0,0.014309]
[1770446861379,0.13087768,69959.0,69933.0,0.014307]
[1770446861577,0.13087768,69959.0,69933.0,0.55864033]
[1770446861889,0.02032891,69972.0,69943.0,0.59086202]
[1770446862787,0.02032891,69972.0,69920.0,0.14293044]
[1770446862788,0.01640401,69971.0,69932.0,0.57786532]
[1770446863090,0.01640401,69966.0,69932.0,0.57786532]
[1770446863385,0.01640401,69963.0,69935.0,0.014307]
[1770446863576,0.13295205,69972.0,69939.0,0.014306]
[1770446863781,0.03070301,69974.0,69939.0,0.014306]
[1770446863985,0.01640401,69974.0,69939.0,0.57786532]
[1770446864192,0.01640401,69974.0,69947.0,0.014304]
[1770446864595,0.12770662,69980.0,69951.0,0.014303]
[1770446864794,0.02639851,69985.0,69951.0,0.014303]
[1770446864995,0.01210151,69984.0,69949.0,0.57929949]
[1770446865192,0.01210151,69979.0,69950.0,0.014304]
[1770446865395,0.01210151,69979.0,69964.0,0.28468793]
[1770446865595,0.01210151,69979.0,69954.0,0.014303]
[1770446865893,0.01210151,69979.0,69930.0,0.21485284]
[1770446865894,0.0715,69971.0,69895.0,0.58333333]
[1770446866094,0.00782509,69946.0,69896.0,0.58333333]
[1770446866292,0.00782509,69946.0,69888.0,0.085899]
[1770446866293,0.00782509,69946.0,69902.0,0.58072497]
[1770446866896,0.00782509,69942.0,69909.0,0.014312]
[1770446867194,0.00782509,69940.0,69913.0,0.014311]
[1770446868594,0.02482762,69902.0,69858.0,0.57525745]
[1770446868890,0.02482762,69902.0,69863.0,0.57505745]
[1770446869091,0.02482762,69902.0,69886.0,0.014317]
[1770446869289,0.02482762,69923.0,69878.0,0.57505745]
[1770446869490,0.02482762,69918.0,69866.0,0.57505745]
[1770446869899,0.02482762,69916.0,69866.0,0.57505745]
[1770446870097,0.01431,69921.0,69887.0,0.014316]
[1770446870401,0.12869345,69923.0,69893.0,0.014315]
[1770446870702,0.014309,69924.0,69893.0,0.014315]
[1770446870897,0.1302559,69937.0,69882.0,0.07159]
[1770446871097,0.014307,69934.0,69906.0,0.014313]
[1770446871297,0.014306,69939.0,69908.0,0.014312]
[1770446871595,0.071519,69952.0,69907.0,0.014312]
[1770446871800,0.014306,69938.0,69911.0,0.014312]
[1770446872002,0.20235281,69960.0,69914.0,0.014311]
[1770446872601,0.014306,69939.0,69913.0,0.014311]
[1770446872791,0.014305,69944.0,69913.0,0.014311]
[1770446872996,0.014305,69944.0,69917.0,0.01431]
[1770446873197,0.014304,69949.0,69921.0,0.01431]
[1770446873495,0.014304,69947.0,69921.0,0.01431]
[1770446873891,0.12922057,69949.0,69913.0,0.58333333]
[1770446874098,0.014302,69959.0,69930.0,0.014308]
[1770446874303,0.014301,69965.0,69941.0,0.014305]
[1770446874503,0.014302,69959.0,69920.0,0.58333333]
[1770446874707,0.014301,69964.0,69920.0,0.58333333]
[1770446874902,0.071484,69987.0,69922.0,0.58333333]
[1770446875102,0.014299,69975.0,69926.0,0.58333333]
[1770446875299,0.014299,69975.0,69925.0,0.071546]
[1770446875300,0.014297,69982.0,69937.0,0.58333333]
[1770446875502,0.14143369,69987.0,69941.0,0.58333333]
[1770446875704,0.14143369,69987.0,69961.0,0.014301]
[1770446875705,0.014297,69985.0,69961.0,0.014301]
[1770446875906,0.12713769,69987.0,69974.0,0.014299]
[1770446876105,0.014293,70001.0,69974.0,0.014299]
[1770446876404,0.014293,70001.0,69954.0,0.58333333]
[1770446877210,0.014294,69997.0,69954.0,0.58333333]
[1770446877507,0.014293,70002.0,69971.0,0.014299]
[1770446877708,0.014293,70003.0,69971.0,0.014299]
[1770446878208,0.085728,70029.0,69965.0,0.58333333]
[1770446878509,0.014291,70014.0,69980.0,0.014297]
[1770446878806,0.014291,70014.0,69984.0,0.014297]
[1770446879698,0.014292,70010.0,69979.0,0.014298]
[1770446879903,0.014292,70008.0,69979.0,0.014298]
[1770446880103,0.014291,70013.0,69983.0,0.014297]
[1770446880303,0.014292,70009.0,69978.0,0.014298]
[1770446880497,0.00010879,70008.0,69991.0,0.28468793]
[1770446880704,0.014292,70009.0,69991.0,0.28468793]
[1770446880913,0.13272071,70014.0,69986.0,0.014296]
[1770446881107,0.01429,70015.0,69986.0,0.014296]
[1770446881514,0.014289,70020.0,69990.0,0.014295]
[1770446881708,0.01429,70016.0,69985.0,0.014296]
[1770446882117,0.014288,70027.0,70000.0,0.014293]
[1770446882312,0.00010879,70015.0,69981.0,0.58333333]
[1770446882509,0.07143,70039.0,69989.0,0.014296]
[1770446882708,0.01429,70018.0,69989.0,0.014296]
[1770446883215,0.014289,70023.0,69981.0,0.58333333]
[1770446883813,0.014289,70024.0,69993.0,0.014295]
[1770446884016,0.014289,70020.0,69981.0,0.58162833]
[1770446884218,0.014289,70020.0,69981.0,0.58143656]
[1770446884408,0.014289,70020.0,69996.0,0.014294]
[1770446884712,0.01592116,70020.0,69996.0,0.014294]
[1770446884911,0.00010879,70019.0,69996.0,0.014294]
[1770446885110,0.00010879,70018.0,69996.0,0.014294]
[1770446885313,0.00010879,70017.0,70009.0,0.014291]
[1770446885515,0.00010879,70016.0,69999.0,0.014294]
[1770446885817,0.014288,70029.0,70004.0,0.014293]
[1770446886503,0.071612,70057.0,69998.0,0.58278927]
[1770446886504,0.071612,70057.0,70011.0,0.014291]
[1770446887010,0.0002,70057.0,70018.0,0.01429]
[1770446887216,0.014284,70048.0,70021.0,0.014289]
[1770446887816,0.00010879,70047.0,70028.0,0.014288]
[1770446888313,0.014283,70053.0,70028.0,0.014288]
[1770446888907,0.00223226,70058.0,70027.0,0.014288]
[1770446888908,0.014282,70057.0,70027.0,0.014288]
[1770446889108,0.00223226,70058.0,70014.0,0.58332097]
[1770446889109,0.01651426,70058.0,70031.0,0.014287]
[1770446889310,0.01627249,70058.0,70031.0,0.014287]
[1770446889506,0.014281,70063.0,70037.0,0.014286]
[1770446889710,0.00199049,70067.0,70024.0,0.58266983]
[1770446889907,0.00199049,70067.0,70009.0,0.07146]
[1770446889908,0.014285,70043.0,70019.0,0.01429]
[1770446890111,0.014284,70047.0,70013.0,0.58266983]
[1770446890314,0.00199049,70053.0,70032.0,0.014287]
[1770446890516,0.00199049,70053.0,70013.0,0.58266983]
[1770446890720,0.014284,70049.0,70025.0,0.014288]
[1770446890918,0.01627349,70053.0,70028.0,0.014288]
[1770446891117,0.00199049,70053.0,70022.0,0.014289]
[1770446891423,0.220095,70092.0,70049.0,0.014283]
[1770446891424,0.0002,70080.0,70049.0,0.014283]
[1770446891718,0.014279,70070.0,70031.0,0.58261733]
[1770446891918,0.0002,70080.0,70048.0,0.014284]
[1770446892215,0.003136,70110.0,70057.0,0.57752833]
[1770446892414,0.003136,70110.0,70050.0,0.14324421]
[1770446892415,0.017365,70104.0,70073.0,0.014278]
[1770446892622,0.01717323,70104.0,70069.0,0.014279]
[1770446892819,0.01717323,70087.0,70048.0,0.57760892]
[1770446893017,0.014279,70071.0,70048.0,0.57760892]
[1770446893318,0.01717323,70066.0,70024.0,0.57760892]
[1770446893517,0.014281,70062.0,70024.0,0.57760892]
[1770446893708,0.01717323,70066.0,70031.0,0.014287]
[1770446893906,0.01717323,70066.0,70026.0,0.014288]
[1770446894908,0.01712266,69998.0,69970.0,0.0143]
[1770446895113,0.071443,70026.0,69967.0,0.57762577]
[1770446895114,0.01712266,70009.0,69967.0,0.57762577]
[1770446895316,0.014293,70004.0,69969.0,0.0143]
[1770446895720,0.01410123,70004.0,69969.0,0.0143]
[1770446896313,0.014293,70001.0,69969.0,0.0143]
[1770446896518,0.014293,70001.0,69973.0,0.014299]
[1770446897918,0.0614476,70000.0,69904.0,0.57380066]
[1770446898118,0.028598,69953.0,69911.0,0.57400066]
[1770446898322,0.014307,69933.0,69911.0,0.57380066]
[1770446898522,0.01683839,69949.0,69910.0,0.0002]
[1770446898717,0.014307,69937.0,69910.0,0.0002]
[1770446899424,0.014307,69937.0,69907.0,0.014312]
[1770446899617,0.01683839,69949.0,69912.0,0.59203153]
[1770446900008,0.014305,69944.0,69912.0,0.59203153]
[1770446900228,0.01683839,69949.0,69912.0,0.59203153]
[1770446900229,0.014306,69942.0,69912.0,0.59203153]
[1770446900527,0.014304,69947.0,69916.0,0.5902226]
[1770446900712,0.00018098,69946.0,69916.0,0.5902226]
[1770446900912,0.014305,69943.0,69916.0,0.5459126]
[1770446901112,0.1473117,69949.0,69923.0,0.5802216]
[1770446901308,0.1473117,69949.0,69893.0,0.014315]
[1770446901309,0.14620738,69963.0,69939.0,0.5802186]
[1770446901513,0.014299,69973.0,69939.0,0.5802186]
[1770446902317,0.05275074,69973.0,69927.0,0.014308]
[1770446902513,0.05275074,69929.0,69888.0,0.014316]
[1770446902718,0.014309,69926.0,69888.0,0.56574975]
[1770446902918,0.014309,69926.0,69889.0,0.014316]
[1770446903324,0.05275074,69929.0,69899.0,0.014314]
[1770446903514,0.05275074,69929.0,69898.0,0.014314]
[1770446904226,0.014307,69932.0,69898.0,0.014314]
[1770446904421,0.014306,69938.0,69904.0,0.014313]
[1770446904616,0.04473773,69941.0,69909.0,0.014312]
[1770446904820,0.014306,69940.0,69909.0,0.014312]
[1770446905118,0.18694604,69941.0,69909.0,0.014312]
[1770446905624,0.14220831,69941.0,69921.0,0.58273075]
[1770446905819,0.14881182,69955.0,69926.0,0.014309]
[1770446906018,0.014301,69965.0,69926.0,0.014309]
[1770446906222,0.014301,69965.0,69931.0,0.014308]
[1770446907137,0.05903873,69966.0,69931.0,0.014308]
[1770446907831,0.04337158,69965.0,69921.0,0.56842075]
[1770446908032,0.014301,69963.0,69928.0,0.014308]
[1770446908524,0.14348355,69980.0,69900.0,0.14348355]
[1770446908525,0.00012044,69962.0,69934.0,0.58496752]
[1770446908716,0.00012044,69962.0,69934.0,0.56096752]
[1770446908916,0.14255739,69969.0,69943.0,0.014305]
[1770446909128,0.014299,69975.0,69943.0,0.014305]
[1770446909524,0.18252572,69977.0,69939.0,0.56742952]
[1770446909734,0.014299,69975.0,69942.0,0.56742952]
[1770446910426,0.18252572,69977.0,69949.0,0.014304]
[1770446910617,0.18252572,69977.0,69930.0,0.071541]
[1770446910618,0.04508537,69976.0,69930.0,0.56830487]
[1770446910822,0.05938437,69972.0,69940.0,0.014306]
[1770446911524,0.05938437,69972.0,69944.0,0.014305]
[1770446911832,0.04508537,69972.0,69946.0,0.014305]
[1770446912129,0.14450729,69977.0,69945.0,0.014305]
[1770446912328,0.014298,69980.0,69949.0,0.014304]
[1770446912522,0.04508537,69984.0,69955.0,0.014303]
[1770446913027,0.14371256,69984.0,69960.0,0.014301]
[1770446913332,0.14549537,69991.0,69962.0,0.014301]
[1770446913523,0.0442097,69996.0,69955.0,0.56859676]
[1770446913723,0.0442097,69996.0,69969.0,0.0143]
[1770446913923,0.0442097,70008.0,69965.0,0.56859676]
[1770446914231,0.014292,70006.0,69965.0,0.56859676]
[1770446914837,0.014292,70006.0,69980.0,0.014298]
[1770446915131,0.00011014,70005.0,69980.0,0.014298]
[1770446915330,0.04533556,69997.0,69965.0,0.56859676]
[1770446915533,0.14445147,70008.0,69987.0,0.014296]
[1770446915731,0.04533556,70010.0,69987.0,0.014296]
[1770446916432,0.14376623,70016.0,69979.0,0.56054299]
[1770446916633,0.014291,70014.0,69986.0,0.014296]
[1770446916933,0.03925601,70022.0,69986.0,0.014296]
[1770446916934,0.14426259,70019.0,69998.0,0.014294]
[1770446917130,0.014289,70025.0,69998.0,0.014294]
[1770446917437,0.014287,70030.0,69998.0,0.014294]
[1770446917731,0.04896101,70035.0,70012.0,0.014291]
[1770446917937,0.014286,70037.0,70007.0,0.014292]
[1770446918436,0.014285,70042.0,70013.0,0.014291]
[1770446918637,0.04896101,70047.0,70020.0,0.014289]
[1770446918837,0.014285,70043.0,70015.0,0.01429]
[1770446919134,0.014284,70046.0,70009.0,0.56717038]
[1770446919328,0.014285,70042.0,70012.0,0.014291]
[1770446919528,0.014285,70042.0,70016.0,0.01429]
[1770446919730,0.014285,70042.0,70009.0,0.56717038]
[1770446919731,0.042876,69988.0,69960.0,0.014302]
[1770446919928,0.042876,69988.0,69956.0,0.56717038]
[1770446919929,0.02838823,69988.0,69959.0,0.014302]
[1770446920127,0.02838823,70000.0,69958.0,0.57387058]
[1770446920338,0.014295,69993.0,69958.0,0.57387058]
[1770446920528,0.014295,69993.0,69969.0,0.0143]
[1770446920729,0.014296,69989.0,69964.0,0.014301]
[1770446920927,0.014295,69992.0,69965.0,0.0143]
[1770446921332,0.014296,69988.0,69958.0,0.57387058]
[1770446921542,0.014296,69988.0,69964.0,0.014301]
[1770446921840,0.02838823,70000.0,69968.0,0.0143]
[1770446922138,0.02838823,70000.0,69943.0,0.014305]
[1770446922139,0.02944595,70014.0,69978.0,0.014298]
[1770446923337,0.014292,70007.0,69978.0,0.014298]
[1770446923835,0.014292,70007.0,69981.0,0.014297]
[1770446924034,0.02944595,70014.0,69977.0,0.014298]
[1770446924035,0.014294,70001.0,69977.0,0.014298]
[1770446924235,0.014292,70005.0,69970.0,0.56981601]
[1770446924534,0.14655943,70014.0,69930.0,0.58234017]
[1770446924535,0.014301,69965.0,69930.0,0.58234017]
[1770446924739,0.00297947,69972.0,69942.0,0.014305]
[1770446924740,0.014299,69971.0,69942.0,0.014305]
[1770446925046,0.014302,69960.0,69931.0,0.014307]